fUSD/lending_fUSD_20240503
["ID","MTS","AMOUNT","RATE_DAILY","PERIOD"]
[325317748,1714713046569,-1649.804581,0.00024999,7]
[325317749,1714713046579,-1649.804581,0.00024999,7]
[325317750,1714713046589,-1649.804581,0.00024999,7]
[325317751,1714713046598,-1649.804581,0.00024999,7]
[325317752,1714713046610,-1649.804581,0.00024999,7]
[325317753,1714713046621,-949.474239,0.00024999,7]
[325317754,1714713046631,-949.474239,0.00024999,7]
[325317755,1714713046642,-949.474239,0.00024999,7]
[325317756,1714713046653,-431.31477,0.00024999,7]
[325317757,1714713046665,-431.31477,0.00024999,7]
[325317758,1714713046674,-431.31477,0.00024999,7]
[325317759,1714713046683,-949.474239,0.00024999,7]
[325317760,1714713046692,-949.474239,0.00024999,7]
[325317761,1714713046702,-949.474239,0.00024999,7]
[325317762,1714713046712,-431.31477,0.00024999,7]
[325317763,1714713046721,-431.31477,0.00024999,7]
[325317764,1714713046730,-431.31477,0.00024999,7]
[325317765,1714713046740,-151.0,0.00024999,7]
[325317766,1714713046752,-151.0,0.00024999,7]
[325317767,1714713046762,-151.0,0.00024999,7]
[325317768,1714713046771,-151.0,0.00024999,7]
[325317769,1714713046780,-151.0,0.00024999,7]
[325317770,1714713046791,-3131.51,0.00024999,2]
[325317771,1714713046800,-3131.51,0.00024999,2]
[325317772,1714713046810,-187.665309,0.00024999,7]
[325317773,1714713046820,-3131.51,0.00024999,2]
[325317774,1714713046833,-3131.51,0.00024999,2]
[325317775,1714713046844,-3131.51,0.00024999,2]
[325317776,1714713046855,-3131.51,0.00024999,2]
[325317777,1714713046866,-3131.51,0.00024999,2]
[325317778,1714713046877,-3131.51,0.00024999,2]
[325317779,1714713046887,-3131.51,0.00024999,2]
[325317780,1714713046897,-3131.51,0.00024999,2]
[325317781,1714713046909,-3131.51,0.00024999,2]
[325317782,1714713046918,-1366.466633,0.00024999,7]
[325317783,1714713046929,-3131.51,0.00024999,2]
[325317784,1714713046939,-1366.466633,0.00024999,7]
[325317785,1714713046949,-3131.51,0.00024999,2]
[325317786,1714713046958,-1366.466633,0.00024999,7]
[325317787,1714713046968,-3131.51,0.00024999,2]
[325317788,1714713046977,-3131.51,0.00024999,2]
[325317789,1714713046987,-3131.51,0.00024999,2]
[325317790,1714713046996,-3131.51,0.00024999,2]
[325317791,1714713047006,-3131.51,0.00024999,2]
[325317792,1714713047015,-3131.51,0.00024999,2]
[325317793,1714713047025,-3131.51,0.00024999,2]
[325317794,1714713047034,-3131.51,0.00024999,2]
[325317795,1714713047044,-3131.51,0.00024999,2]
[325317796,1714713047053,-3131.51,0.00024999,2]
[325317797,1714713047063,-3131.5513328,0.00024999,2]
[325317798,1714713047072,-1366.466633,0.00024999,7]
[325317799,1714713047082,-1366.466633,0.00024999,7]
[325317800,1714713047092,-1366.466633,0.00024999,7]
[325317801,1714713047102,-1255.367063,0.00024999,7]
[325317802,1714713047112,-1255.367063,0.00024999,7]
[325317803,1714713047121,-1255.367063,0.00024999,7]
[325317804,1714713047131,-1255.367063,0.00024999,7]
[325317805,1714713047140,-1255.367063,0.00024999,7]
[325317806,1714713047150,-1255.367063,0.00024999,7]
[325317807,1714713047159,-258.43022,0.00024999,7]
[325317808,1714713047169,-258.43022,0.00024999,7]
[325317809,1714713047179,-258.43022,0.00024999,7]
[325317810,1714713047188,-258.43022,0.00024999,7]
[325317811,1714713047197,-258.43022,0.00024999,7]
[325317812,1714713047207,-258.43022,0.00024999,7]
[325317813,1714713047216,-1437.064133,0.00024999,7]
[325317814,1714713047226,-1437.064133,0.00024999,7]
[325317815,1714713047235,-1437.064133,0.00024999,7]
[325317816,1714713047244,-1437.064133,0.00024999,7]
[325317817,1714713047254,-1437.064133,0.00024999,7]
[325317818,1714713047263,-1437.064133,0.00024999,7]
[325317819,1714713047272,-2223.912805,0.00024999,7]
[325317820,1714713047282,-2223.912805,0.00024999,7]
[325317821,1714713047291,-2223.912805,0.00024999,7]
[325317822,1714713047301,-2223.912805,0.00024999,7]
[325317823,1714713047312,-2223.912805,0.00024999,7]
[325317824,1714713047322,-2223.912805,0.00024999,7]
[325317825,1714713047332,-151.0,0.00024999,7]
[325317826,1714713047341,-2223.912805,0.00024999,7]
[325317827,1714713047351,-244.629602,0.00024999,7]
[325317828,1714713047362,-2223.912805,0.00024999,7]
[325317829,1714713047373,-151.0,0.00024999,7]
[325317830,1714713047382,-151.884264,0.00024999,7]
[325317831,1714713047391,-646.188322,0.00024999,7]
[325317832,1714713047401,-646.188322,0.00024999,7]
[325317833,1714713047412,-646.188322,0.00024999,7]
[325317834,1714713047424,-646.188322,0.00024999,7]
[325317835,1714713047434,-646.188322,0.00024999,7]
[325317836,1714713047443,-646.188322,0.00024999,7]
[325317837,1714713047453,-151.0,0.00024999,7]
[325317838,1714713047463,-151.0,0.00024999,7]
[325317839,1714713047472,-151.0,0.00024999,7]
[325317840,1714713047482,-151.0,0.00024999,7]
[325317841,1714713047493,-151.0,0.00024999,7]
[325317842,1714713047503,-151.0,0.00024999,7]
[325317843,1714713047514,-151.0,0.00024999,7]
[325317844,1714713047534,-270.077165,0.00024999,7]
[325317845,1714713047546,-151.0,0.00024999,7]
[325317846,1714713047556,-151.0,0.00024999,7]
[325317847,1714713047567,-151.0,0.00024999,7]
[325317848,1714713047576,-151.0,0.00024999,7]
[325317849,1714713047586,-151.0,0.00024999,7]
[325317850,1714713047596,-151.0,0.00024999,7]
[325317851,1714713047605,-151.0,0.00024999,7]
[325317852,1714713047615,-151.0,0.00024999,7]
[325317853,1714713047624,-153.328409,0.00024999,7]
[325317854,1714713047634,-357.37468,0.00024999,7]
[325317855,1714713047643,-153.328409,0.00024999,7]
[325317856,1714713047652,-357.37468,0.00024999,7]
[325317857,1714713047662,-153.328409,0.00024999,7]
[325317858,1714713047672,-357.37468,0.00024999,7]
[325317859,1714713047682,-153.328409,0.00024999,7]
[325317860,1714713047693,-357.37468,0.00024999,7]
[325317861,1714713047703,-15838.04,0.00024999,2]
[325317862,1714713047714,-15838.04,0.00024999,2]
[325317863,1714713047725,-15838.04,0.00024999,2]
[325317864,1714713047738,-15838.04,0.00024999,2]
[325317865,1714713047748,-15838.04,0.00024999,2]
[325317866,1714713047758,-15838.04,0.00024999,2]
[325317867,1714713047768,-15838.04,0.00024999,2]
[325317868,1714713047779,-15838.04,0.00024999,2]
[325317869,1714713047788,-15838.04,0.00024999,2]
[325317870,1714713047798,-15838.04,0.00024999,2]
[325317871,1714713047808,-357.37468,0.00024999,7]
[325317872,1714713047817,-15838.04,0.00024999,2]
[325317873,1714713047827,-153.328409,0.00024999,7]
[325317874,1714713047837,-357.37468,0.00024999,7]
[325317875,1714713047847,-15838.04,0.00024999,2]
[325317876,1714713047856,-153.328409,0.00024999,7]
[325317877,1714713047867,-15838.04,0.00024999,2]
[325317878,1714713047877,-357.37468,0.00024999,7]
[325317879,1714713047887,-153.328409,0.00024999,7]
[325317880,1714713047897,-15838.04,0.00024999,2]
[325317881,1714713047906,-357.37468,0.00024999,7]
[325317882,1714713047916,-153.328409,0.00024999,7]
[325317883,1714713047926,-15838.04,0.00024999,2]
[325317884,1714713047936,-15838.04,0.00024999,2]
[325317885,1714713047946,-15838.04,0.00024999,2]
[325317886,1714713047957,-15838.1179936,0.00024999,2]
[325317887,1714713047967,-119026.41183906,0.00025,2]
[325317888,1714713049405,-2822.20934861,0.00025,2]
[325317889,1714713049424,-562.8941396,0.00025,2]
[325317890,1714713049474,-6699.55270272,0.00025,2]
[325317891,1714713049682,-585420.4821129,0.00025,2]
[325317892,1714713049695,-2875.77289994,0.00025,2]
[325317893,1714713049707,-2020.62785488,0.00025,2]
[325317894,1714713052073,-1254.51609524,0.00017259,2]
[325317895,1714713052247,-1819.16127493,0.00017259,2]
[325317896,1714713052258,-1724.70286176,0.00025,2]
[325317897,1714713053794,-151.0,0.00024799,7]
[325317898,1714713053803,-151.0,0.00024799,7]
[325317899,1714713053813,-151.0,0.000249,7]
[325317900,1714713053822,-151.0,0.000249,7]
[325317901,1714713053832,-397.0,0.00025,2]
[325317902,1714713053852,-9432.294,0.00025,2]
[325317903,1714713053864,-3173.55568467,0.00025,2]
[325317904,1714713053976,-212.21907029,0.00017258,2]
[325317905,1714713053987,-151.0,0.00024999,7]
[325317906,1714713053997,-145068.93486062,0.00025,2]
[325317907,1714713854303,1667.861376,0.00011976,2]
[325317908,1714713860189,-150.0,0.00012037,2]
[325317909,1714713860210,-9189.71076016,0.00012038,7]
[325317911,1714713909449,155.34728803,0.00012038,2]
[325317913,1714714024876,215.36136779,0.00012038,2]
[325317950,1714714223575,-155.0,0.00012217,2]
[325317951,1714714223598,-407.36032122,0.00012217,2]
[325317952,1714714223620,-527.60952804,0.00012218,2]
[325317953,1714714223643,-427.59691009,0.00012219,2]
[325317954,1714714223664,-3074.61500758,0.00012219,2]
[325317980,1714714232168,-1214.03292019,0.00012394,2]
[325317982,1714714232180,-1525.72557559,0.00012395,2]
[325317987,1714714232222,-2004.63430666,0.00012395,2]
[325317990,1714714232235,-174.02775814,0.00012395,2]
[325317992,1714714232247,-155.74146302,0.00012395,2]
[325317994,1714714232259,-155.16976034,0.00017257,2]
[325317997,1714714232271,-487.73631676,0.00017257,2]
[325317998,1714714232283,-4604.10764388,0.00017258,7]
[325317999,1714714232297,-838.87281885,0.00017258,7]
[325318000,1714714232312,-344.1262584,0.00017258,7]
[325318001,1714714232325,-1299.4208445,0.00017258,7]
[325318038,1714714237846,-427.42348965,0.00017248,2]
[325318039,1714714237856,-527.60952804,0.00017257,2]
[325318040,1714714237867,-108.80791532,0.00017258,7]
[325318041,1714714237903,-1012.57792381,0.00017258,7]
[325318042,1714714237913,-63410.92514782,0.00017259,2]
[325318043,1714714237923,-562.99,0.00017259,2]
[325318044,1714714237933,-499.99,0.00017259,2]
[325318045,1714714237942,-164.52,0.00017519,2]
[325318046,1714714237952,-464.24,0.00017534,2]
[325318047,1714714237963,-2016.25,0.00019452,2]
[325318048,1714714237974,-150.0,0.00019882,2]
[325318049,1714714237984,-216.0,0.00019882,2]
[325318050,1714714237993,-150.99,0.00020546,2]
[325318051,1714714238003,-155.0,0.000209,2]
[325318052,1714714238013,-492.27,0.00021398,2]
[325318053,1714714238023,-500.0,0.00021584,2]
[325318054,1714714238034,-272.53,0.00021644,2]
[325318055,1714714238044,-161.7,0.00021738,2]
[325318056,1714714238054,-154.45,0.00021829,2]
[325318057,1714714238064,-250.0,0.00021918,2]
[325318058,1714714238074,-1820.11,0.00022118,3]
[325318059,1714714238084,-250.0,0.0002219,2]
[325318060,1714714238094,-23900.0,0.00022277,2]
[325318061,1714714238103,-216.0,0.00022367,2]
[325318062,1714714238113,-227.48,0.00022731,2]
[325318063,1714714238123,-784.0,0.0002293,2]
[325318064,1714714238132,-154.45,0.00022966,2]
[325318065,1714714238144,-220.33048339,0.000238,2]
[325318066,1714714238155,-318.8,0.00024008,2]
[325318067,1714714238165,-868.06,0.00024192,2]
[325318068,1714714238177,-301.6,0.00024192,2]
[325318069,1714714238187,-325.94,0.00024192,2]
[325318070,1714714238196,-157.050314,0.00024248,4]
[325318071,1714714238206,-163.28,0.00024329,15]
[325318072,1714714238215,-157.050314,0.00024348,6]
[325318073,1714714238225,-220.86545724,0.00024348,2]
[325318074,1714714238236,-30616.4453,0.000244,2]
[325318075,1714714238246,-1000.0,0.000244,2]
[325318076,1714714238256,-157.050314,0.00024448,4]
[325318077,1714714238267,-283.44852378,0.00024499,2]
[325318078,1714714238277,-88948.25025071,0.000245,2]
[325318079,1714714238287,-157.050314,0.00024548,6]
[325318080,1714714238297,-153.7,0.00024647,2]
[325318081,1714714238307,-157.050314,0.00024648,4]
[325318082,1714714238316,-3193.67,0.00024657,2]
[325318083,1714714238326,-3193.67,0.00024657,2]
[325318084,1714714238336,-3193.67,0.00024657,2]
[325318085,1714714238346,-12165.2,0.00024657,2]
[325318086,1714714238356,-200.0,0.00024658,2]
[325318087,1714714238366,-20222.92491642,0.00024747,2]
[325318088,1714714238381,-174.050314,0.00024748,6]
[325318089,1714714238394,-888.0,0.00024798,2]
[325318090,1714714238404,-3193.67,0.00024798,2]
[325318091,1714714238415,-3193.67,0.00024798,2]
[325318092,1714714238425,-652.44489183,0.0002485,2]
[325318093,1714714238435,-216.0,0.00024852,2]
[325318094,1714714238445,-14847.48,0.00024852,2]
[325318095,1714714238455,-200.0,0.00024854,2]
[325318096,1714714238465,-194.05039763,0.00024898,2]
[325318097,1714714238475,-394.2915364,0.00024898,2]
[325318098,1714714238487,-500.0,0.00024898,2]
[325318099,1714714238497,-1421.0087,0.00024899,2]
[325318100,1714714238508,-1211.7634,0.00024899,2]
[325318101,1714714238519,-665.1794,0.00024899,2]
[325318102,1714714238529,-65901.6554,0.00024899,2]
[325318103,1714714238540,-7500.0,0.00024899,2]
[325318104,1714714238552,-3193.67,0.00024899,2]
[325318105,1714714238564,-358.73176447,0.000249,2]
[325318106,1714714238575,-284.77394873,0.000249,2]
[325318107,1714714238585,-282.66113403,0.000249,2]
[325318108,1714714238595,-184.67256595,0.000249,2]
[325318109,1714714238606,-167.25516408,0.000249,2]
[325318110,1714714238617,-171.93634807,0.000249,2]
[325318111,1714714238628,-4604.07556986,0.000249,2]
[325318112,1714714238640,-3094.01258304,0.000249,2]
[325318113,1714714238650,-151.87422436,0.000249,2]
[325318114,1714714238659,-200.0,0.00024907,2]
[325318115,1714714238669,-1000.0,0.00024907,2]
[325318116,1714714238679,-500.0,0.00024907,2]
[325318117,1714714238689,-200.0,0.00024907,2]
[325318118,1714714238699,-3193.67,0.00024939,2]
[325318119,1714714238710,-4626.68696717,0.00024976,2]
[325318120,1714714238722,-153.7,0.0002499,2]
[325318121,1714714238739,-2392.8326579,0.00024993,2]
[325318122,1714714238751,-24543.8457263,0.00024993,2]
[325318123,1714714238761,-1227.3383214,0.00024993,2]
[325318124,1714714238774,-459.7232508,0.00024993,2]
[325318125,1714714238784,-396.180915,0.00024993,2]
[325318126,1714714238794,-3428.16114838,0.00024997,2]
[325318127,1714714238807,-1787.33966692,0.00024997,2]
[325318128,1714714238821,-706.80422125,0.00024997,2]
[325318129,1714714238832,-2189.03026665,0.00024997,2]
[325318130,1714714238843,-155.26368011,0.00024997,2]
[325318131,1714714238853,-156.46812312,0.00024997,2]
[325318132,1714714238865,-155.23517237,0.00024997,2]
[325318133,1714714238874,-155.21281844,0.00024997,2]
[325318134,1714714238884,-200.15587507,0.00024997,2]
[325318135,1714714238896,-360.84372027,0.00024997,10]
[325318136,1714714238906,-441.94236054,0.00024997,2]
[325318137,1714714238915,-1506.62226057,0.00024998,2]
[325318138,1714714238926,-155.42349258,0.00024998,2]
[325318139,1714714238935,-345.60713201,0.00024998,2]
[325318140,1714714238945,-270.04532473,0.00024998,2]
[325318141,1714714238956,-378.51268957,0.00024998,2]
[325318142,1714714238966,-201.16744693,0.00024998,2]
[325318143,1714714238976,-306.71178674,0.00024998,2]
[325318144,1714714238986,-155.63840474,0.00024998,2]
[325318145,1714714238995,-411.03913746,0.00024998,2]
[325318146,1714714239008,-155.0,0.00024998,2]
[325318147,1714714239018,-3193.67,0.00024998,2]
[325318148,1714714239028,-3193.67,0.00024998,2]
[325318149,1714714239038,-2352.37272208,0.00024999,2]
[325318150,1714714239048,-458.13613,0.00024999,2]
[325318151,1714714239058,-500.0,0.00024999,2]
[325318152,1714714239068,-555.53712837,0.00024999,2]
[325318153,1714714239078,-3193.67,0.00024999,2]
[325318154,1714714239087,-3193.67,0.00024999,2]
[325318155,1714714239097,-3193.67,0.00024999,2]
[325318156,1714714239107,-3193.67,0.00024999,2]
[325318157,1714714239117,-3193.67,0.00024999,2]
[325318158,1714714239127,-3193.67,0.00024999,2]
[325318159,1714714239138,-3193.67,0.00024999,2]
[325318160,1714714239148,-3193.67,0.00024999,2]
[325318161,1714714239159,-3193.67,0.00024999,2]
[325318162,1714714239170,-3193.67,0.00024999,2]
[325318163,1714714239181,-3193.67,0.00024999,2]
[325318164,1714714239191,-3193.67,0.00024999,2]
[325318165,1714714239200,-3193.67,0.00024999,2]
[325318166,1714714239210,-3193.67,0.00024999,2]
[325318167,1714714239220,-3193.7513328,0.00024999,2]
[325318168,1714714239231,-12165.2,0.00024999,2]
[325318169,1714714239240,-12165.2,0.00024999,2]
[325318170,1714714239250,-12165.2,0.00024999,2]
[325318171,1714714239261,-12165.2,0.00024999,2]
[325318172,1714714239271,-12165.2,0.00024999,2]
[325318173,1714714239282,-12165.2,0.00024999,2]
[325318174,1714714239291,-12165.2,0.00024999,2]
[325318175,1714714239301,-12165.2,0.00024999,2]
[325318176,1714714239311,-12165.2,0.00024999,2]
[325318177,1714714239321,-12165.2,0.00024999,2]
[325318178,1714714239331,-12165.2,0.00024999,2]
[325318179,1714714239341,-12165.2,0.00024999,2]
[325318180,1714714239352,-12165.2,0.00024999,2]
[325318181,1714714239362,-12165.2,0.00024999,2]
[325318182,1714714239372,-12165.2,0.00024999,2]
[325318183,1714714239382,-12165.2,0.00024999,2]
[325318184,1714714239394,-12165.2,0.00024999,2]
[325318186,1714714239404,-12165.2,0.00024999,2]
[325318187,1714714239415,-12165.2,0.00024999,2]
[325318188,1714714239425,-12165.2,0.00024999,2]
[325318189,1714714239435,-12165.2,0.00024999,2]
[325318190,1714714239446,-12165.2,0.00024999,2]
[325318191,1714714239456,-12165.2179936,0.00024999,2]
[325318192,1714714239466,-503.0,0.00025,2]
[325318193,1714714239476,-101274.85497864,0.00025,5]
[325318194,1714714239486,-286977.01161799,0.00025,2]
[325318195,1714714239545,-293223.88069124,0.00025,2]
[325318196,1714714239566,-1548.40046312,0.00025,2]
[325318199,1714714239636,-490.1733676,0.00025,2]
[325318201,1714714240940,-3074.61500758,0.00017257,2]
[325318202,1714714240952,-157.86285769,0.00024989,2]
[325318203,1714714240964,-376627.69834933,0.00025,2]
[325318204,1714714241653,-961.51875694,0.00025,2]
[325318205,1714714241665,-5156.24366728,0.00025,2]
[325318206,1714714241676,-2139.63411005,0.00025,2]
[325318207,1714714242328,-156.14457258,0.00017257,2]
[325318208,1714714242338,-7404.93321572,0.00025,2]
[325318211,1714714242430,-9066.87316871,0.00025,2]
[325318212,1714714242442,-656.05,0.00025,2]
[325318213,1714714242454,-3096.18912661,0.00025,2]
[325318214,1714714242481,-39780.056613,0.00025,2]
[325318238,1714714242771,-407.36032122,0.00017259,2]
[325318241,1714714242781,-585.76703919,0.00025,2]
[325318245,1714714242937,-746.41320266,0.00025,2]
[325318246,1714714243066,-13320.0,0.00025,2]
[325318247,1714714243104,-444.24779552,0.00025,2]
[325318265,1714714245814,-250.0,0.00023554,2]
[325318266,1714714245824,-888.0,0.00024999,2]
[325318267,1714714245833,-907.98837982,0.00025,2]
[325318268,1714714245862,-143548.93361107,0.00025,2]
[325318269,1714714245974,-3030.99915328,0.00025,2]
[325318270,1714714245985,-549.5572481,0.00025,2]
[325318271,1714714245996,-6028.6047016,0.00025,2]
[325318277,1714714743173,150.0,0.00010993,2]
[325318278,1714714897898,-407.36032122,0.00012118,2]
[325318279,1714714897918,-3074.61500758,0.00012118,2]
[325318281,1714715027624,2217.56096565,0.00012118,2]
[325318282,1714715115696,3610.62930479,0.00012118,2]
[325318287,1714715188639,-697.4248,0.00012119,2]
[325318289,1714715209673,10985.0,0.00025,120]
[325318290,1714715209702,77203.01511678,0.00025,120]
[325318323,1714715422302,-364.13980716,0.00017256,2]
[325318324,1714715422324,-707.22952022,0.00017256,2]
[325318325,1714715422346,-360.01550888,0.00017257,2]
[325318326,1714715422368,-627.88888,0.00017258,2]
[325318327,1714715422781,487.83911314,0.00017255,2]
[325318352,1714715432017,-171.26,0.0001814,2]
[325318354,1714715432026,-627.88888,0.0001825,2]
[325318356,1714715432036,-167.28575374,0.000195,2]
[325318357,1714715432050,-460.60312626,0.000195,2]
[325318358,1714715432060,-499.99,0.00019726,2]
[325318359,1714715432070,-627.88888,0.0002075,2]
[325318360,1714715432080,-155.0,0.000209,2]
[325318361,1714715432090,-60.00799374,0.00022,2]
[325318362,1714715432103,-567.88088626,0.00022,2]
[325318363,1714715432113,-159.8804627,0.00022045,2]
[325318364,1714715432124,-72.23865104,0.0002207,2]
[325318365,1714715432241,-87.86155447,0.0002207,2]
[325318366,1714715432251,-280.59701535,0.00022081,2]
[325318367,1714715432263,-36.04449832,0.00022081,2]
[325318368,1714715432273,-414.77693186,0.000221,3]
[325318369,1714715432285,-188.22306814,0.000221,3]
[325318370,1714715432295,-224.58486188,0.00022115,2]
[325318371,1714715432304,-153.72003341,0.00022259,2]
[325318372,1714715432314,-154.66083297,0.00022319,2]
[325318373,1714715432323,-193.87260385,0.00022606,2]
[325318374,1714715432335,-9806.12739615,0.00022606,2]
[325318375,1714715432345,-316.64151367,0.00022617,2]
[325318376,1714715432356,-23900.0,0.00022624,2]
[325318378,1714715432366,-154.66331786,0.00022627,2]
[325318380,1714715432375,-154.17335256,0.00022634,2]
[325318382,1714715432384,-819.28,0.00022646,3]
[325318384,1714715432394,-293.35,0.00022674,2]
[325318385,1714715432403,-582.09,0.00022683,2]
[325318387,1714715432412,-250.0,0.00022686,2]
[325318389,1714715432422,-150.0,0.00022686,2]
[325318391,1714715432431,-250.0,0.00022705,2]
[325318393,1714715432441,-216.0,0.00022722,2]
[325318395,1714715432450,-154.45,0.00022768,2]
[325318397,1714715432459,-154.94303449,0.00022822,2]
[325318399,1714715432468,-160.10020551,0.00022851,2]
[325318401,1714715432478,-155.99402394,0.00022854,2]
[325318403,1714715432487,-913.6,0.00022883,2]
[325318405,1714715432496,-173.98,0.00022951,2]
[325318407,1714715432506,-155.56154185,0.00023023,2]
[325318409,1714715432515,-156.29113825,0.00023032,2]
[325318411,1714715432524,-153.72003341,0.0002305,2]
[325318413,1714715432534,-161.7,0.00023054,2]
[325318415,1714715432544,-158.43315543,0.00023128,2]
[325318417,1714715432554,-154.17335256,0.00023154,2]
[325318419,1714715432563,-2612.33854269,0.00023177,7]
[325318421,1714715432572,-627.88888,0.0002325,2]
[325318424,1714715432582,-316.64151367,0.00023274,2]
[325318426,1714715432591,-153.72003341,0.00023377,2]
[325318427,1714715432601,-182.67614098,0.00023536,2]
[325318429,1714715432611,-154.17335256,0.00023558,2]
[325318432,1714715432621,-160.10020551,0.00023667,2]
[325318433,1714715432630,-155.99402394,0.00023673,2]
[325318435,1714715432639,-316.64151367,0.0002372,2]
[325318437,1714715432649,-159.8804627,0.00023743,2]
[325318439,1714715432658,-159.8804627,0.00023761,2]
[325318441,1714715432668,-154.17335256,0.00023801,2]
[325318443,1714715432677,-224.58486188,0.00023805,2]
[325318445,1714715432686,-224.58486188,0.00023891,2]
[325318447,1714715432696,-154.45,0.00023954,2]
[325318449,1714715432705,-316.64151367,0.00023961,2]
[325318451,1714715432715,-224.58486188,0.00023962,2]
[325318453,1714715432724,-154.17335256,0.00024056,2]
[325318455,1714715432733,-154.17335256,0.00024115,2]
[325318457,1714715432742,-154.17335256,0.00024122,2]
[325318459,1714715432752,-154.66331786,0.00024258,2]
[325318462,1714715432762,-419.58,0.0002426,2]
[325318463,1714715432772,-1609.8352,0.00024299,2]
[325318466,1714715432782,-163.28,0.00024329,15]
[325318467,1714715432791,-419.58,0.00024356,2]
[325318468,1714715432802,-163.01,0.00024356,2]
[325318469,1714715432811,-150.0,0.00024356,2]
[325318470,1714715432821,-850.18,0.00024356,2]
[325318471,1714715432832,-155.56154185,0.00024364,2]
[325318472,1714715432842,-285.92067307,0.00024397,2]
[325318473,1714715432851,-155.0,0.00024397,2]
[325318474,1714715432861,-408.43119432,0.00024397,2]
[325318475,1714715432870,-155.63840474,0.00024397,2]
[325318476,1714715432880,-306.71178674,0.00024397,2]
[325318477,1714715432890,-411.03913746,0.00024397,2]
[325318478,1714715432899,-201.16744693,0.00024397,2]
[325318479,1714715432909,-378.51268957,0.00024397,2]
[325318480,1714715432919,-155.42349258,0.00024397,2]
[325318481,1714715432928,-270.04532473,0.00024397,2]
[325318482,1714715432938,-345.60713201,0.00024397,2]
[325318483,1714715432948,-1480.72894547,0.00024397,2]
[325318484,1714715432957,-2430.49065652,0.00024397,2]
[325318485,1714715432971,-1754.72706387,0.00024397,2]
[325318486,1714715432980,-155.21536814,0.00024397,2]
[325318487,1714715432990,-767.8903537,0.00024397,2]
[325318488,1714715433000,-2259.13022236,0.00024397,2]
[325318489,1714715433009,-302.41989939,0.00024397,2]
[325318490,1714715433019,-4436.16441549,0.00024397,2]
[325318491,1714715433029,-168.08931542,0.00024397,2]
[325318492,1714715433038,-577.36339637,0.00024397,2]
[325318493,1714715433047,-203.97616968,0.00024397,2]
[325318494,1714715433057,-237.56295553,0.00024397,2]
[325318495,1714715433066,-221.40799625,0.00024397,2]
[325318496,1714715433075,-1065.40575202,0.00024397,2]
[325318497,1714715433084,-417.45617429,0.00024397,2]
[325318498,1714715433093,-155.37085428,0.00024397,2]
[325318499,1714715433108,-852.4797745,0.00024397,2]
[325318530,1714715438029,-1815.03021535,0.00022606,2]
[325318531,1714715438039,-45.99510275,0.00024397,2]
[325318532,1714715438049,-1932.96094541,0.00024397,2]
[325318533,1714715438060,-317.93296523,0.00024397,2]
[325318534,1714715438070,-155.12358547,0.00024397,2]
[325318535,1714715438079,-155.90651929,0.00024397,2]
[325318536,1714715438088,-200.15587507,0.00024397,2]
[325318537,1714715438098,-155.15471113,0.00024397,2]
[325318538,1714715438108,-239.61381665,0.00024397,2]
[325318539,1714715438121,-194.76294358,0.00024397,2]
[325318540,1714715438131,-414.28119384,0.00024397,2]
[325318541,1714715438139,-1133.29906697,0.00024397,2]
[325318542,1714715438149,-441.94236054,0.00024397,2]
[325318543,1714715438159,-155.21281844,0.00024397,2]
[325318544,1714715438169,-155.23517237,0.00024397,2]
[325318545,1714715438180,-155.26368011,0.00024397,2]
[325318546,1714715438189,-156.46812312,0.00024397,2]
[325318547,1714715438199,-1787.33966692,0.00024397,2]
[325318548,1714715438209,-2189.03026665,0.00024397,2]
[325318549,1714715438220,-156.62359949,0.00024398,2]
[325318550,1714715438231,-3071.80209535,0.00024398,2]
[325318551,1714715438240,-16835.4009908,0.00024399,2]
[325318552,1714715438268,-364.0,0.00024399,2]